bitfinex/quotes_ETHUSD_20260117
["timestamp","ask_amount","ask_price","bid_price","bid_amount"]
[1768663911461,0.00080329,3317.4,3317.1,7.93637415]
[1768663913977,0.00080329,3317.4,3317.3,0.001]
[1768663914178,0.00080329,3317.4,3317.3,0.497]
[1768663916676,9.80529754,3317.4,3317.3,0.001]
[1768663916840,9.80529754,3317.4,3317.1,0.496]
[1768663917046,9.80529754,3317.4,3316.7,0.00080304]
[1768663917249,9.80529754,3317.4,3316.8,0.496]
[1768663917456,9.80529754,3317.4,3316.9,0.496]
[1768663917986,9.80529754,3317.4,3316.9,3.51085198]
[1768663918157,9.80529754,3317.4,3316.9,1.13750275]
[1768663919804,9.80529754,3317.4,3316.9,0.496]
[1768663920298,9.80449425,3317.3,3316.7,7.14681844]
[1768663920668,9.80449425,3317.3,3316.7,0.00080304]
[1768663921001,9.80449425,3317.3,3316.8,0.497]
[1768663921802,3.01450499,3317.3,3316.7,0.00080304]
[1768663921978,9.80449425,3317.2,3316.8,0.497]
[1768663922184,9.80449425,3317.2,3316.7,0.49780304]
[1768663922570,9.80529754,3317.4,3316.7,0.49780304]
[1768663923030,9.80449425,3317.3,3316.7,0.49780304]
[1768663925805,0.002,3317.1,3316.7,0.00080304]
[1768663926006,9.80649425,3317.1,3316.8,0.497]
[1768663928506,9.80449425,3317.0,3316.8,0.497]
[1768663929185,9.80449425,3317.0,3316.3,0.00080344]
[1768663929383,9.80449425,3317.0,3316.5,0.497]
[1768663930416,9.80449425,3316.9,3316.5,0.497]
[1768663930820,9.80729729,3317.1,3316.5,8.00217067]
[1768663930997,9.80729729,3317.1,3316.5,0.497]
[1768663931319,9.80449425,3317.0,3316.4,0.497]
[1768663932918,9.80449425,3316.9,3316.4,0.497]
[1768663933627,0.00280304,3317.1,3316.5,7.59541221]
[1768663934188,9.80729729,3317.1,3316.5,7.59541221]
[1768663934401,9.80729729,3317.1,3316.5,11.10762053]
[1768663934732,9.80729729,3317.1,3316.6,7.62472794]
[1768663936923,9.80729729,3317.1,3316.5,0.497]
[1768663937629,9.80729729,3317.1,3316.3,10.69858343]
[1768663937834,9.80729729,3317.1,3316.4,0.497]
[1768663938933,9.80449425,3317.0,3316.4,0.497]
[1768663939227,9.80449425,3317.0,3316.8,0.001]
[1768663943814,10.03921345,3316.9,3316.8,0.001]
[1768663944209,10.03921345,3316.9,3316.5,0.497]
[1768663946003,10.04201649,3317.1,3316.5,8.44905976]
[1768663946741,0.00280304,3317.1,3316.5,3.51222645]
[1768663946939,0.00280304,3317.1,3316.6,7.97728357]
[1768663947148,0.00280304,3317.1,3316.8,7.97728357]
[1768663947550,0.00280329,3317.4,3316.9,7.97448053]
[1768663947935,10.04201674,3317.4,3316.9,7.97448053]
[1768663950318,10.04201674,3317.4,3316.9,10.98932514]
[1768663950719,0.002,3317.1,3316.9,10.98932514]
[1768663950922,0.002,3317.1,3316.9,12.54836006]
[1768663952315,0.002,3317.1,3316.9,12.54837116]
[1768663953447,0.002,3317.1,3316.9,12.54837053]
[1768663954145,0.00280329,3317.4,3317.0,8.16634765]
[1768663954839,10.29459696,3317.4,3317.0,8.16634765]
[1768663955039,10.29459696,3317.4,3316.9,4.57389]
[1768663955341,10.29459696,3317.4,3316.9,12.76295579]
[1768663955952,10.29459696,3317.4,3316.9,1.55903492]
[1768663956311,10.29459696,3317.4,3316.9,4.5738442]
[1768663957121,10.29459696,3317.4,3316.9,1.55903492]
[1768663957642,10.29459696,3317.4,3316.9,4.57388941]
[1768663958163,10.29179367,3317.8,3317.1,8.2533661]
[1768663958453,10.29179367,3318.0,3317.3,8.2533661]
[1768663960628,0.497,3318.3,3317.5,8.31780932]
[1768663960864,16.81609757,3318.3,3317.5,8.31780932]
[1768663961160,10.29179367,3318.2,3317.5,8.31780932]
[1768663961760,3.51065195,3318.3,3317.1,0.497]
[1768663961761,10.29179367,3318.0,3317.1,0.497]
[1768663961938,10.57370316,3317.9,3317.0,0.00080337]
[1768663962140,0.28194202,3317.8,3317.0,0.00080337]
[1768663962347,10.29179367,3317.5,3317.0,0.00080337]
[1768663964759,13.30615577,3317.5,3317.0,0.00080337]
[1768663964961,10.29179367,3317.4,3317.0,0.00080337]
[1768663966960,3.01442224,3317.4,3317.0,0.00080337]
[1768663967167,10.29179367,3317.3,3317.0,0.00080337]
[1768663968166,10.29179367,3317.3,3316.7,0.00080312]
[1768663969069,10.29179367,3316.8,3316.3,0.49780344]
[1768663969434,10.29179367,3316.8,3316.3,0.00080344]
[1768663970670,10.29179367,3317.0,3316.4,8.44544066]
[1768663970883,0.00080312,3317.1,3316.4,8.44544066]
[1768663971169,0.00080312,3317.1,3316.6,8.45389708]
[1768663971477,0.00080312,3317.1,3316.5,4.46288612]
[1768663971478,0.00080312,3317.1,3316.5,1.44770547]
[1768663971640,10.29259679,3317.1,3316.4,0.497]
[1768663971855,10.29259679,3317.1,3316.3,8.47128191]
[1768663972043,10.29259679,3317.1,3316.3,8.96828191]
[1768663972448,10.29259679,3317.1,3316.3,8.47128191]
[1768663973457,13.30736662,3317.1,3316.3,8.47128191]
[1768663973673,11.04190131,3317.0,3316.3,0.00080344]
[1768663974786,11.04190131,3317.0,3316.6,0.001]
[1768663974975,11.04190131,3316.7,3316.6,0.001]
[1768663975486,11.04190131,3316.7,3316.3,0.00080344]
[1768663981803,0.002,3316.8,3316.4,8.5480009]
[1768663983084,0.002,3316.8,3316.4,11.56328492]
[1768663983403,0.002,3316.8,3316.4,8.5480009]
[1768663983890,0.002,3316.8,3316.4,11.56331037]
[1768663984882,0.00280312,3317.1,3316.6,8.56752296]
[1768663985196,0.00280312,3317.1,3316.7,8.56752296]
[1768663988607,0.002,3316.8,3316.7,11.5825085]
[1768663988782,0.00280312,3317.1,3316.8,8.59528103]
[1768663989384,0.00280312,3317.1,3317.0,8.59528103]
[1768663994408,0.00080337,3317.4,3317.1,8.6281535]
[1768663996485,0.00080337,3317.4,3317.1,11.64281614]
[1768663998815,0.002,3317.7,3317.2,8.65894723]
[1768663999114,0.002,3317.7,3317.3,0.81487402]
[1768663999317,0.002,3317.7,3317.3,9.47382125]
[1768664000519,11.04390131,3317.7,3317.3,0.81487402]
[1768664001111,0.002,3317.4,3317.3,0.81487402]
[1768664002515,0.002,3317.4,3317.3,9.49725951]
[1768664006489,0.002,3317.7,3317.3,9.49725951]
[1768664007526,0.002,3317.7,3317.4,9.96139753]
[1768664008393,0.002,3317.7,3317.5,11.72990721]
[1768664009823,0.002,3317.7,3317.6,8.72613605]
[1768664011223,0.002,3317.7,3317.5,3.01431801]
[1768664011434,0.002,3317.7,3317.5,11.74563928]
[1768664011724,0.002,3317.7,3317.6,1.29968185]
[1768664012625,3.01360762,3318.3,3317.7,8.7446383]
[1768664012626,11.19306071,3318.3,3317.7,8.7446383]
[1768664012827,11.19306071,3318.3,3317.9,8.7426383]
[1768664016513,11.19306071,3318.3,3317.9,11.75656644]
[1768664019443,11.19306071,3318.3,3317.9,13.23363554]
[1768664020742,0.002,3318.5,3317.9,13.23363554]
[1768664020902,11.19506071,3318.5,3317.9,13.23363554]
[1768664021233,11.19306071,3318.4,3317.9,10.2197074]
[1768664022831,11.19306071,3318.4,3317.9,1.4770691]
[1768664023139,11.19306071,3318.3,3317.8,3.51101915]
[1768664025046,11.19306071,3318.3,3317.8,12.3093069]
[1768664026248,0.002,3318.0,3317.8,12.3093069]
[1768664026543,11.19506071,3318.3,3317.8,12.3093069]
[1768664030251,11.19506071,3318.3,3317.2,8.80172583]
[1768664030555,11.19306071,3318.2,3317.3,3.51046242]
[1768664030925,11.19306071,3318.2,3317.4,3.0144024]
[1768664032650,10.24941066,3318.0,3317.4,3.0144024]
[1768664032845,10.24941066,3318.0,3317.2,1.18172327]
[1768664033047,10.24941066,3318.0,3317.3,0.496]
[1768664034749,10.24941066,3317.8,3317.3,0.496]
[1768664035852,10.24941066,3317.8,3317.2,4.69330544]
[1768664037046,10.24941066,3317.7,3317.0,0.00080345]
[1768664037246,10.24941066,3317.7,3317.1,0.497]
[1768664038331,10.24941066,3317.7,3317.5,0.001]
[1768664039149,10.24941066,3317.6,3317.0,0.00080345]
[1768664039827,10.24941066,3317.6,3317.0,3.01552504]
[1768664040028,10.24941066,3317.6,3317.1,11.82402787]
[1768664042168,10.24941066,3317.6,3317.1,8.80935479]
[1768664042318,13.26340116,3317.9,3317.2,8.81056369]
[1768664042515,13.26340116,3317.9,3317.1,7.37428164]
[1768664042516,10.24941066,3318.2,3317.5,8.81056369]
[1768664042724,10.24941066,3318.2,3317.6,1.3170192]
[1768664043168,3.01559966,3318.3,3317.6,10.12815825]
[1768664043169,0.002,3318.3,3317.6,10.12815825]
[1768664043338,10.25141066,3318.3,3317.7,0.497]
[1768664043618,0.002,3318.3,3317.9,11.82509365]
[1768664043827,0.002,3318.8,3318.0,11.19679001]
[1768664044019,0.002,3318.8,3318.1,12.91925993]
[1768664044348,10.25141066,3318.8,3318.1,12.91925993]
[1768664044654,10.24941066,3318.7,3318.1,12.91925993]
[1768664045151,10.24941066,3318.7,3318.1,13.41625993]
[1768664046559,10.24941066,3318.7,3318.2,14.21047212]
[1768664047685,10.24941066,3318.7,3318.3,11.19679001]
[1768664048665,0.002,3318.8,3318.4,11.19679001]
[1768664048853,10.25141066,3318.8,3318.4,11.19679001]
[1768664049047,0.002,3318.8,3318.4,12.43801904]
[1768664049653,10.25141066,3318.6,3318.4,1.24122903]
[1768664049973,10.25141066,3318.6,3318.1,1.72246992]
[1768664050141,10.25141066,3318.6,3318.1,2.21846992]
[1768664050338,10.25141066,3318.6,3318.1,1.72246992]
[1768664050539,10.25141066,3318.6,3318.1,2.21946992]
[1768664050976,10.25141066,3318.6,3318.1,5.23323832]
[1768664051139,10.25141066,3318.6,3318.2,1.94438904]
[1768664051341,10.25141066,3318.6,3318.1,14.70755841]
[1768664053072,10.25141066,3318.6,3318.2,11.19679001]
[1768664053073,0.002,3318.6,3318.2,11.19679001]
[1768664055270,0.002,3318.6,3318.2,14.21045483]
[1768664058561,10.24941066,3318.7,3318.2,7.37329309]
[1768664058762,0.002,3318.8,3318.3,11.19679001]
[1768664058953,0.002,3318.8,3318.3,12.09239545]
[1768664060383,10.25141066,3318.8,3318.3,12.09239545]
[1768664060989,10.25141066,3318.8,3318.3,0.89560544]
[1768664061295,10.25141066,3318.8,3318.1,14.7075308]
[1768664061694,10.25141066,3318.8,3318.5,0.001]
[1768664064200,3.0151433,3318.8,3318.5,0.001]
[1768664064366,11.13276555,3318.7,3318.5,0.001]
[1768664066203,0.002,3319.1,3318.6,15.63320849]
[1768664066374,11.13276555,3319.2,3318.7,12.83700107]
[1768664068200,11.13476555,3319.4,3318.8,11.27358022]
[1768664070386,11.13476555,3319.4,3318.9,3.01304649]
[1768664071710,11.13476555,3319.4,3318.7,1.56342085]
[1768664071711,11.13276555,3319.3,3318.7,16.34620199]
[1768664072006,11.13276555,3319.3,3318.7,13.33300107]
[1768664072307,11.13276555,3319.3,3318.8,3.01312946]
[1768664072493,11.13276555,3319.3,3318.9,11.27358022]
[1768664073409,0.002,3319.1,3318.9,11.27358022]
[1768664074610,0.002,3319.1,3318.9,14.28657515]
[1768664074811,0.002,3319.1,3318.9,3.01299493]
[1768664078820,0.002,3319.1,3318.8,13.25716804]
[1768664078821,11.13935534,3319.1,3318.7,3.01316451]
[1768664079033,11.13935534,3319.1,3318.7,0.496]
[1768664079240,11.13935534,3319.1,3318.8,3.01313173]
[1768664079515,11.63635534,3319.7,3318.9,11.62254542]
[1768664079877,11.63635534,3319.7,3319.0,6.0259114]
[1768664082005,11.63635534,3319.7,3319.0,3.0129557]
[1768664084186,11.63635534,3319.7,3319.0,6.0259114]
[1768664084415,11.63635534,3319.7,3319.0,19.11198933]
[1768664084819,11.63635534,3319.7,3319.1,11.32123225]
[1768664085219,0.002,3319.4,3319.1,11.32123225]
[1768664085611,11.63635534,3319.7,3319.2,14.33400641]
[1768664088041,11.63635534,3319.7,3319.1,3.01279113]
[1768664088208,11.63635534,3319.7,3319.0,2.26084568]
[1768664088209,11.13735534,3319.6,3319.0,3.50892327]
[1768664088411,11.13735534,3319.6,3319.1,3.01284121]
[1768664089704,11.13735534,3319.6,3319.1,3.01286493]
[1768664091242,11.13735534,3319.6,3319.1,15.80931729]
[1768664096352,11.13735534,3319.6,3319.1,1.47522011]
[1768664097242,11.13735534,3319.6,3319.4,0.001]
[1768664101525,11.70010495,3319.5,3319.4,0.001]
[1768664103330,14.71260683,3319.5,3319.4,0.001]
[1768664103530,11.70010495,3319.4,3318.8,0.496]
[1768664103754,11.70010495,3319.4,3318.6,10.64187606]
[1768664103922,11.70010495,3319.4,3318.7,0.496]
[1768664104442,11.70010495,3319.4,3318.7,11.13787606]
[1768664105455,11.70010495,3319.4,3318.7,14.15103433]
[1768664105760,11.70010495,3319.4,3318.8,10.64187606]
[1768664109280,11.70010495,3319.4,3319.1,0.001]
[1768664111247,11.70010495,3319.6,3319.1,0.001]
[1768664111435,11.70010495,3319.6,3319.1,10.64287606]
[1768664111839,0.499,3319.7,3319.1,12.08249514]
[1768664112082,0.499,3319.7,3319.1,11.70716367]
[1768664112456,0.499,3319.7,3319.1,12.20316367]
[1768664112638,14.7144459,3319.7,3319.1,12.20316367]
[1768664114376,14.7144459,3319.7,3319.1,11.13887606]
[1768664115483,14.7144459,3319.7,3319.1,10.64287606]
[1768664115655,14.7144459,3319.7,3319.1,11.13887606]
[1768664120285,14.7144459,3319.7,3319.1,10.64287606]
[1768664120591,14.7144459,3319.7,3319.1,11.13887606]
[1768664120994,0.002,3319.4,3319.1,11.13887606]
[1768664121157,0.002,3319.4,3319.2,0.58147984]
[1768664122106,0.002,3319.4,3319.2,12.0936604]
[1768664128192,0.002,3319.4,3319.2,11.51218056]
[1768664128619,0.002,3319.4,3319.1,0.497]
[1768664128983,0.002,3319.4,3319.1,12.00918056]
[1768664136197,0.002,3319.4,3319.1,0.497]
[1768664136718,14.24666923,3319.5,3319.1,0.001]
[1768664140635,11.23612326,3319.7,3319.1,12.41690014]
[1768664140882,3.0143286,3319.7,3319.1,12.41690014]
[1768664141010,0.002,3319.7,3319.1,12.41690014]
[1768664141617,3.01432284,3319.7,3319.1,12.41690014]
[1768664142332,14.2484461,3319.7,3319.1,12.41690014]
[1768664144326,11.23412326,3319.6,3319.1,12.41690014]
[1768664144748,11.23412326,3319.6,3319.4,0.001]
[1768664146521,14.24655031,3319.6,3319.4,0.001]
[1768664149451,11.23412326,3319.5,3319.4,0.001]
[1768664155925,11.23412326,3319.5,3319.1,0.001]
[1768664155926,11.23648693,3319.4,3319.1,0.001]
[1768664156761,14.24910874,3319.4,3319.1,0.001]
[1768664156978,11.23648693,3319.3,3319.1,0.001]
[1768664159063,11.23648693,3319.2,3319.1,0.001]
[1768664160449,11.23648693,3319.2,3318.5,0.001]
[1768664161286,11.23648693,3319.0,3318.5,0.001]
[1768664163682,14.24945301,3319.0,3318.5,0.001]
[1768664163979,11.23648693,3318.9,3318.5,0.001]
[1768664165001,11.23648693,3319.1,3318.5,11.04958726]
[1768664165450,11.23648693,3319.1,3318.6,11.04858726]
[1768664168113,14.24937006,3319.1,3318.8,0.001]
[1768664168518,11.23648693,3319.0,3318.8,0.001]
[1768664169613,11.23648693,3318.9,3318.8,0.001]
[1768664172816,14.24953342,3318.9,3318.8,0.001]
[1768664174823,11.73348693,3319.3,3318.8,0.001]
[1768664175612,14.74617229,3319.3,3318.8,0.001]
[1768664175817,11.23648693,3319.2,3318.8,0.001]
[1768664180089,11.23648693,3319.2,3318.9,0.001]
[1768664182879,11.03812843,3319.1,3318.9,0.001]
[1768664183716,14.05107026,3319.1,3318.9,0.001]
[1768664183911,11.03812843,3319.0,3318.9,0.001]
[1768664184409,11.03812843,3319.0,3318.5,0.001]
[1768664184410,11.03812843,3318.9,3318.5,0.001]
[1768664184610,11.03812843,3318.9,3317.4,3.13488967]
[1768664184611,11.03812843,3318.9,3317.7,0.7842136]
[1768664184803,11.03812843,3318.9,3317.9,3.01389641]
[1768664185114,11.53512843,3318.9,3318.0,3.01386335]
[1768664185288,11.53512843,3318.9,3317.9,0.76993435]
[1768664185492,11.53512843,3318.9,3318.0,3.01383997]
[1768664185705,11.03812843,3318.8,3318.0,3.01383997]
[1768664186001,11.03812843,3318.6,3317.9,3.78385148]
[1768664186521,11.53512843,3318.9,3318.0,0.75581911]
[1768664188292,11.53512843,3318.9,3318.2,0.72807316]
[1768664189079,11.53512843,3318.9,3318.1,3.50977294]
[1768664189284,11.53512843,3318.9,3317.0,4.54921071]
[1768664189285,11.03812843,3318.5,3317.7,3.01405126]
[1768664189517,11.03812843,3318.5,3317.9,3.01386866]
[1768664189723,11.03812843,3318.5,3317.9,3.71482959]
[1768664191900,11.03812843,3318.5,3318.2,0.001]
[1768664196549,3.01343299,3318.5,3318.2,0.001]
[1768664196703,11.27439752,3318.4,3318.2,0.001]
[1768664198777,0.499,3318.9,3318.2,0.001]
[1768664198778,0.002,3318.9,3318.3,0.497]
[1768664199123,0.002,3318.9,3318.4,6.02700096]
[1768664199649,11.27639752,3318.9,3318.4,6.02700096]
[1768664199848,11.27639752,3318.9,3318.5,0.6524001]
[1768664200050,11.27639752,3318.9,3318.4,6.02700096]
[1768664200051,11.27639752,3318.9,3318.3,3.01355555]
[1768664200247,11.27639752,3318.9,3318.3,3.51055555]
[1768664202129,3.01504807,3318.9,3318.3,3.51055555]
[1768664202321,11.27439752,3318.8,3318.3,0.497]
[1768664203257,11.27439752,3318.8,3318.3,3.5105894]
[1768664203552,11.27439752,3318.8,3318.3,0.497]
[1768664203727,11.27439752,3318.8,3318.2,3.01466249]
[1768664203936,11.27439752,3318.8,3318.3,3.51059097]
[1768664204870,11.27439752,3318.8,3318.5,0.001]
[1768664205268,0.002,3318.6,3318.5,0.001]
[1768664210275,11.27639752,3318.6,3318.5,0.001]
[1768664214970,11.27639752,3318.6,3317.5,7.37300251]
[1768664214971,11.22929291,3318.5,3317.0,1.53448382]
[1768664215176,11.22929291,3318.5,3317.5,3.01431407]
[1768664215474,11.22929291,3318.5,3317.7,3.01411389]
[1768664216247,11.22929291,3318.4,3317.4,6.02881774]
[1768664216469,11.22929291,3318.4,3317.5,0.497]
[1768664217078,11.22929291,3318.4,3318.0,0.001]
[1768664217379,11.22929291,3318.2,3318.0,0.001]
[1768664219247,11.22929291,3318.1,3318.0,0.001]
[1768664223184,3.01369677,3318.2,3318.0,0.001]
[1768664223359,0.002,3318.6,3318.0,0.001]
[1768664223360,11.23129291,3318.6,3318.0,0.001]
[1768664223558,11.22929291,3318.5,3318.0,0.001]
[1768664224071,0.002,3318.6,3318.0,0.001]
[1768664224683,0.002,3318.6,3318.1,4.35872728]
[1768664224888,0.002,3318.9,3318.1,4.35872728]
[1768664225884,0.002,3318.9,3318.2,3.01368211]
[1768664226090,11.23129291,3318.9,3318.2,4.10209763]
[1768664226589,11.23129291,3318.9,3318.2,4.59909763]
[1768664228186,11.22929291,3318.8,3318.2,4.10209763]
[1768664228395,11.22929291,3318.8,3318.2,3.01368211]
[1768664229292,11.22929291,3318.8,3318.5,0.001]
[1768664229694,0.002,3318.6,3318.5,0.001]
[1768664232094,11.23129291,3318.6,3318.0,0.001]
[1768664232291,11.22929291,3318.4,3318.0,0.001]
[1768664234397,0.002,3318.9,3318.2,2.60695836]
[1768664234573,11.23129291,3318.9,3318.2,2.60695836]
[1768664237008,14.24434577,3318.9,3318.3,2.58034222]
[1768664237311,11.22929291,3318.8,3318.3,2.58034222]
[1768664237894,11.22929291,3318.8,3318.0,2.51724866]
[1768664238101,11.22929291,3318.8,3318.0,5.53105434]
[1768664238612,11.22929291,3318.8,3318.0,2.51724866]
[1768664238980,11.22929291,3318.6,3318.0,2.51724866]
[1768664240092,11.22929291,3318.6,3318.0,0.001]
[1768664241036,3.01337131,3318.6,3318.0,0.001]
[1768664241311,11.22929291,3318.5,3318.3,0.001]
[1768664243225,11.51509669,3318.4,3318.3,0.001]
[1768664245097,14.52859717,3318.4,3318.3,0.001]
[1768664246125,11.51509669,3318.4,3318.3,0.001]
[1768664250144,11.51509669,3318.3,3318.0,0.001]
[1768664252227,11.51509669,3318.2,3317.5,1.63926325]
[1768664254330,10.23234183,3318.0,3317.5,1.63926325]
[1768664257364,0.002,3318.6,3317.6,10.38718158]
[1768664257637,10.73134183,3318.6,3317.7,1.03871816]
[1768664258632,10.73134183,3318.6,3317.8,6.0280909]
[1768664260644,10.73134183,3318.6,3317.8,6.05823135]
[1768664260645,10.23434183,3318.6,3317.8,6.05823135]
[1768664260944,0.002,3318.6,3317.9,4.35872728]
[1768664261147,0.002,3318.6,3318.0,0.497]
[1768664261342,0.002,3318.6,3318.1,0.48557273]
[1768664261648,10.23434183,3319.2,3318.5,4.35872728]
[1768664261848,10.23434183,3319.2,3318.2,4.75071141]
[1768664262058,0.002,3319.2,3318.2,4.75071141]
[1768664262231,0.002,3319.2,3318.3,0.52362841]
[1768664262542,0.002,3319.2,3318.5,6.02681934]
[1768664262914,10.23434183,3319.2,3318.5,6.02681934]
[1768664264536,10.23434183,3319.2,3318.5,3.01340967]
[1768664265349,0.002,3319.2,3318.7,4.35706439]
[1768664265549,0.002,3319.2,3318.8,0.43570644]
[1768664266727,0.002,3319.2,3318.8,3.44875816]
[1768664268957,10.23434183,3319.2,3318.8,0.43570644]
[1768664269149,10.23434183,3319.2,3318.6,3.01326061]
[1768664269657,10.23434183,3319.2,3318.7,3.01322507]
[1768664271077,0.002,3319.2,3318.6,3.01331886]
[1768664271271,0.002,3319.2,3318.6,6.02663772]
[1768664271473,0.002,3319.2,3318.7,0.65236377]
[1768664272749,0.002,3319.2,3318.7,3.66550471]
[1768664274200,3.01221306,3319.9,3319.1,4.35706439]
[1768664274494,10.22641925,3319.8,3319.1,4.35706439]
[1768664275065,10.22641925,3319.8,3319.2,3.01277416]
[1768664277585,10.22641925,3319.8,3319.2,4.05104347]
[1768664278486,0.002,3319.5,3319.2,4.05104347]
[1768664291171,10.22841925,3319.5,3319.0,3.0129557]
[1768664298735,10.22841925,3319.5,3318.9,6.02609162]
[1768664298937,10.22841925,3319.5,3318.9,6.52209162]
[1768664299730,10.22641925,3319.4,3318.8,3.01310488]
[1768664300037,10.22641925,3319.4,3318.9,0.03013046]
[1768664300222,10.22641925,3319.4,3318.8,3.04323625]
[1768664300748,10.22641925,3319.4,3318.7,3.01321078]
[1768664301051,10.22641925,3319.4,3318.7,6.02643885]
[1768664301453,10.22641925,3319.4,3318.8,0.03013137]
[1768664302835,0.002,3319.5,3318.9,3.01304649]
[1768664303037,0.002,3319.5,3319.0,0.03012955]
[1768664303215,10.16769516,3319.5,3319.0,0.03012955]
[1768664303534,10.16569516,3319.7,3319.3,0.001]
[1768664310855,10.16569516,3319.6,3319.3,0.001]
[1768664312856,10.16369516,3319.6,3319.3,0.001]
[1768664314652,10.5248007,3319.5,3319.3,0.001]
[1768664318258,13.53713232,3319.7,3319.3,0.001]
[1768664318450,10.5248007,3319.6,3319.3,0.001]
[1768664319863,0.497,3320.1,3319.3,0.001]
[1768664319864,10.5248007,3323.5,3319.5,8.71412878]
[1768664320066,0.2822288,3322.8,3322.1,4.35706439]
[1768664320249,0.00691737,3324.6,3322.5,4.35706439]
[1768664320250,10.5248007,3323.6,3322.5,4.35706439]
[1768664320434,10.5248007,3323.6,3322.7,4.35706439]
[1768664320841,13.53342058,3323.8,3322.8,0.496]
[1768664321042,13.5248007,3323.7,3322.8,0.496]
[1768664321240,1.1984219,3323.3,3322.8,0.496]
[1768664321744,1.1984219,3323.3,3322.8,3.00951005]
[1768664321942,1.1984219,3323.3,3322.9,0.496]
[1768664322267,10.5482765,3324.7,3323.2,4.35706439]
[1768664322463,0.0234758,3324.7,3323.7,4.35706439]
[1768664322630,0.0234758,3324.7,3323.8,0.496]
[1768664323259,0.0234758,3324.7,3323.8,4.35706439]
[1768664323475,10.5248007,3324.5,3323.3,4.35706439]
[1768664323681,10.5248007,3324.4,3323.4,0.496]
[1768664323880,0.00691737,3324.6,3323.5,3.00887618]
[1768664324448,3.0,3325.7,3324.6,6.43448461]
[1768664324663,0.05,3326.9,3325.2,3.42575951]
[1768664324664,10.5248007,3326.7,3325.2,3.42575951]
[1768664324951,10.5248007,3326.8,3325.4,3.42575951]
[1768664325129,6.50760238,3326.9,3323.9,0.48614454]
[1768664325130,10.5248007,3325.9,3323.9,3.42575951]
[1768664325333,10.5248007,3325.7,3324.1,3.42575951]
[1768664325535,10.5248007,3325.5,3324.1,3.42575951]
[1768664325777,11.0208007,3326.5,3324.5,3.41713462]
[1768664325940,11.0208007,3326.5,3324.2,0.496]
[1768664325941,10.5248007,3326.4,3324.7,3.41713462]
[1768664326850,10.5248007,3326.7,3324.7,3.41713462]
[1768664327058,0.002,3326.5,3324.7,3.41713462]
[1768664327998,3.0,3327.7,3325.7,5.75280601]
[1768664328269,3.0,3327.7,3324.8,6.13539942]
[1768664328270,10.5248007,3327.3,3324.8,6.13539942]
[1768664328454,9.96152634,3327.6,3324.9,6.36634595]
[1768664328455,10.5248007,3327.1,3324.9,6.36634595]
[1768664328636,0.40971637,3327.5,3325.6,5.75280601]
[1768664328836,0.40971637,3327.5,3325.7,0.496]
[1768664329139,0.94600248,3327.6,3325.8,0.48614454]
[1768664329359,0.94600248,3327.6,3325.9,0.128]
[1768664329563,0.496,3327.5,3326.0,0.48614454]
[1768664329760,10.5248007,3327.4,3325.0,5.75280601]
[1768664329970,10.5248007,3327.2,3325.2,9.0220137]
[1768664330178,10.5248007,3327.2,3325.3,0.48614454]
[1768664330680,0.496,3327.1,3325.4,0.47699548]
[1768664330890,0.94600248,3327.6,3325.5,0.496]
[1768664330891,0.496,3327.0,3325.5,0.496]
[1768664331067,0.496,3327.0,3325.5,0.98214454]
[1768664331269,0.496,3326.9,3325.6,0.47699548]
[1768664331443,0.496,3326.9,3325.7,0.48614454]
[1768664331940,0.496,3326.8,3325.8,3.00679535]
[1768664332155,0.496,3326.8,3325.2,3.49348244]
[1768664332156,0.496,3326.8,3325.7,3.00684269]
[1768664332563,0.496,3326.8,3325.1,3.64398678]
[1768664332564,0.496,3326.8,3325.1,0.63663459]
[1768664332779,9.48077382,3326.8,3325.5,3.00703864]
[1768664333292,9.48077382,3326.8,3324.9,0.61353994]
[1768664333469,9.48077382,3326.8,3324.1,0.48614454]
[1768664333674,9.48077382,3326.8,3324.3,0.496]
[1768664333869,9.48077382,3326.8,3324.7,3.00778539]
[1768664334071,8.98477382,3326.6,3324.5,6.01594224]
[1768664334453,8.98477382,3326.4,3324.5,6.01594224]
[1768664335181,8.98477382,3326.2,3324.5,6.01594224]
[1768664335490,8.98477382,3326.2,3324.6,0.60159422]
[1768664335769,8.93762423,3326.2,3324.6,0.60159422]
[1768664335971,8.98477382,3326.0,3324.6,0.60159422]
[1768664336288,8.98477382,3325.9,3324.7,3.00779017]
[1768664336669,8.98477382,3325.9,3324.0,3.13635124]
[1768664336670,8.98477382,3325.9,3323.9,0.128]
[1768664336874,8.98477382,3325.9,3324.6,3.00786106]
[1768664337196,8.98477382,3325.9,3324.6,3.00787482]
[1768664337966,8.98477382,3325.9,3324.5,3.00794014]
[1768664338172,8.98477382,3325.7,3324.0,6.01684716]
[1768664338398,8.98477382,3325.5,3324.0,6.01684716]
[1768664338600,8.98477382,3325.5,3324.1,0.60168472]
[1768664338799,8.98477382,3325.5,3324.0,3.00842358]
[1768664339099,0.496,3325.4,3324.0,6.01684716]
[1768664339289,8.98477382,3325.3,3324.0,6.01684716]
[1768664339666,8.98477382,3325.3,3323.9,3.00847779]
[1768664339889,8.98477382,3325.1,3323.9,3.00847779]
[1768664340085,8.98477382,3324.9,3323.9,3.00847779]
[1768664340286,8.98477382,3324.9,3323.5,6.01775236]
[1768664340493,11.99240116,3324.9,3323.5,3.00887618]
[1768664340808,8.98477382,3325.2,3323.6,6.74603388]
[1768664340993,0.496,3325.1,3323.6,0.48614454]
[1768664341305,0.496,3325.0,3323.7,0.95127731]
[1768664341490,0.496,3324.9,3323.8,0.48614454]
[1768664342499,0.496,3324.9,3323.9,6.01702818]
[1768664342812,0.496,3324.9,3324.0,0.51622877]
[1768664342974,8.98477382,3325.2,3324.0,0.48614454]
[1768664343175,0.496,3324.8,3324.1,0.65031727]
[1768664344721,0.496,3324.8,3324.2,3.00824258]
[1768664345183,0.496,3324.8,3324.2,3.00521258]
[1768664345515,0.496,3324.8,3324.2,6.01345516]
[1768664345718,0.43552639,3324.8,3324.2,6.01345516]
[1768664346017,0.43552639,3324.8,3324.2,6.6798324]
[1768664346504,0.496,3324.7,3324.2,6.6798324]
[1768664346693,8.98477382,3325.2,3324.2,6.6798324]
[1768664346893,0.496,3325.1,3324.2,6.6798324]
[1768664347397,9.48077382,3325.1,3324.2,6.6798324]
[1768664347989,9.48077382,3325.1,3324.2,3.67158982]
[1768664348189,9.48077382,3325.1,3324.2,0.66637724]